[Event "4th Tata Steel India Blitz Women 2022"]
[Site "Kolkota"]
[Date "2022.12.03"]
[Round "1.1"]
[White "Vaishali, Rameshbabu"]
[Black "Harika, Dronavalli"]
[Result "1/2-1/2"]
[ECO "D11"]
[WhiteElo "2454"]
[BlackElo "2507"]
[Annotator "TA"]
[PlyCount "93"]
[EventDate "2022.11.29"]
[EventType "tourn"]
[EventCountry "IND"]
[SourceTitle "playchess.com"]
[Source "ChessBase"]
[SourceQuality "1"]
[TimeControl "180+2"]

{[%evp 14,93,0,9,20,4,22,1,5,9,12,7,7,0,30,0,0,-14,0,-26,-18,-56,-43,-75,-54,-112,-112,-102,-47,-58,41,-12,0,-50,0,-22,0,-178,-100,-102,-102,-102,-102,-155,-158,-213,-84,-342,375,-481,-413,-406,-393,-380,-395,-378,-384,-495,-458,-499,-393,-400,-202,-219,-12,-12,935,-100,0,0,46,37,78,0,0,0,233,0,0,0,209,0]} 1. d4 {[%emt 0:00:04]} d5 {[%emt 0:00:01]} 2. Nf3 {[%emt 0:00:01]} Bf5 {[%emt 0:00:02]} 3. g3 {[%emt 0:00:09]} e6 {[%emt 0:00:12]} 4. Bg2 {[%emt 0:00:03]} h6 {[%emt 0:00:02]} 5. O-O {[%emt 0:00:21]} Nf6 {[%emt 0:00:03]} 6. c4 {[%emt 0:00:03]} c6 {[%emt 0:00:14]} 7. Qb3 {[%emt 0:00:16]} Qb6 {[%emt 0:00:01]} 8. c5 {[%emt 0:00:03]} Qc7 {[%emt 0:00:05] D11: Slav Defence: 3 Nf3 sidelines and 3...Nf6 4 e3 Bg4.} 9. Bf4 {[%emt 0:00:09]} Qc8 {[%emt 0:00:01]} 10. Nc3 {[%emt 0:00:06]} Be7 {[%emt 0:00:02] The position is equal.} 11. Nd2 {[%emt 0:00:11]} O-O {[%emt 0:00:14]} 12. e4 {[%emt 0:00:06]} Bg6 {[%emt 0:00:02]} 13. Rfe1 {[%emt 0:00:04][%cal Re4d5]} Re8 {[%emt 0:00:13] [#]} 14. a4 $146 {[%emt 0:00:08][%cal Re4d5]} ({Predecessor:} 14. exd5 Nxd5 15. Nxd5 cxd5 16. Qc3 b6 17. Nb3 Nc6 18. Rac1 b5 19. a4 b4 20. Qd2 {1-0 (44) Stupak,K (2567)-Ankit,R (2477) Moscow 2015}) 14... a5 {[%emt 0:00:32]} 15. h3 {[%emt 0:01:06]} Nbd7 {[%emt 0:00:03]} 16. exd5 {[%emt 0:00:12]} exd5 {[%emt 0:00:02]} 17. Re2 {[%emt 0:00:04]} Nf8 {[%emt 0:00:40]} 18. Rae1 {[%emt 0:00:05]} Ne6 {[%emt 0:00:01]} 19. Be5 {[%emt 0:00:08]} (19. Nf3 $15) 19... Nd7 $17 {[%emt 0:00:30] And now ...Nxe5 would win.} 20. Nf3 {[%emt 0:00:10]} Ndf8 {[%emt 0:00:20]} (20... Bh5 $17 {Strongly threatening ...Nxe5.} 21. g4 Nxe5 22. Rxe5 Bg6) 21. g4 {[%emt 0:00:07]} Bd3 {[%emt 0:00:11] [#]} (21... Ra6 $15) 22. Re3 {[%emt 0:00:01]} ({White should play} 22. Nxd5 $1 $14 Bxe2 23. Nb6) 22... Bh7 {[%emt 0:00:03][%cal Ob7b6]} 23. Qd1 {[%emt 0:00:03]} (23. Bg3 $11) 23... Qd8 {[%emt 0:00:04]} (23... b6 $15 24. cxb6 Qb7) 24. Bg3 {[%emt 0:00:04]} (24. Qb3 $5 {[%cal Rb3b7]}) 24... Ng6 {[%emt 0:00:05]} 25. Ne5 $2 {[%emt 0:00:02]} (25. Qb3 $11) 25... Nxe5 {[%emt 0:00:02]} ({Black should try} 25... Bg5 $1 $19 26. Rf3 (26. Nxf7 $2 Kxf7 27. Rxe6 Rxe6 $19) 26... Nxe5 27. Bxe5 b6) 26. Bxe5 {[%emt 0:00:02]} b6 {[%emt 0:00:00]} 27. cxb6 {[%emt 0:00:04]} Qxb6 {[%emt 0:00:02]} 28. R3e2 {[%emt 0:00:02]} (28. Ne2 $142) 28... Bg5 {[%emt 0:00:02]} 29. Rf1 {[%emt 0:00:03]} (29. Na2 $17) 29... Bf4 {[%emt 0:00:01]} (29... f6 $19 {and Black stays clearly on top.} 30. Bg3 Nxd4 31. Rxe8+ Rxe8) 30. Bf3 $2 {[%emt 0:00:01][%mdl 8192]} (30. Bxd5 $17 Bxe5 31. Bxe6 Bxd4 32. Bc4) 30... Ra7 $4 {[%emt 0:00:03][%mdl 8192]} (30... Bxe5 $19 31. Rxe5 Nxd4 32. Rxe8+ Rxe8) 31. Kg2 $4 {[%emt 0:00:02][%mdl 8192]} (31. Bxf4 $18 Rc8 32. Be3) 31... Bxe5 {[%emt 0:00:02]} 32. Rxe5 {[%emt 0:00:01]} Nf4+ {[%emt 0:00:02]} (32... Qxd4 $2 33. Qxd4 Rae7 34. Rxe6 $1 {[%mdl 512]} Rxe6 35. Qc5 $18) (32... Qxb2 $2 33. Qc1 Rb7 34. Ne2 $19) 33. Kg3 {[%emt 0:00:04][%cal Re5e8]} Rxe5 {[%emt 0:00:02]} 34. dxe5 {[%emt 0:00:01]} g5 {[%emt 0:00:01]} (34... Qxb2 35. Qc1 Nd3 36. Qxb2 Nxb2 37. Rc1 $17) 35. Re1 {[%emt 0:00:02]} Re7 {[%emt 0:00:02]} (35... Qxb2 $2 36. Qa1 Qb6 37. Rf1 $19) 36. Qd2 {[%emt 0:00:03]} Qb4 {[%emt 0:00:04]} 37. h4 {[%emt 0:00:02]} Ng6 {[%emt 0:00:01]} (37... Nd3 $2 38. Re2 gxh4+ 39. Kxh4 $19) (37... Re6 $142 38. hxg5 hxg5) 38. hxg5 $19 {[%emt 0:00:01]} hxg5 {[%emt 0:00:04]} (38... h5 $1 $19 {aiming for ...h4+.} 39. Rd1 (39. gxh5 $2 Qh4+ 40. Kg2 Nf4+ 41. Kg1 Qxg5+ 42. Kh2 Qh4+ 43. Kg1 Bf5 $19) 39... h4+ 40. Kh3 Nxe5 41. Nxd5 cxd5 42. Qxb4 axb4) 39. Qxg5 $11 {[%emt 0:00:01]} Qxb2 $2 {[%emt 0:00:01][%mdl 8192]} (39... Re6 $11) 40. Re3 $2 {[%emt 0:00:04] [#]} (40. Rb1 $1 $18 {[%cal Rb1b2]} Qxb1 41. Nxb1) 40... d4 {[%emt 0:00:03]} (40... Qb8 $1 $17 {...d4 is the strong threat.} 41. Ne2 Rxe5 42. Rxe5 Qxe5+ 43. Qxe5 Nxe5) 41. Rd3 {[%emt 0:00:01]} Qb4 {[%emt 0:00:05]} (41... dxc3 42. Rd8+ (42. Bxc6 $2 Rxe5 43. Qf6 c2 $19) (42. Bxc6 $2 Rxe5 43. Qf6 c2 $19)) (41... Qc2 $2 42. Rxd4 Rxe5 43. Qh6 $18 (43. Rd8+ Kg7 $11)) (41... Qb6 $11 42. Ne4 Rxe5 43. Nf6+ Kg7 44. Nh5+ Kg8 45. Nf6+ Kg7 46. Nh5+ Kg8 47. Nf6+) 42. Ne4 $1 $14 {[%emt 0:00:01]} Rxe5 {[%emt 0:00:02]} 43. Nf6+ {[%emt 0:00:03]} ({Better is} 43. Qd8+ $16 Qf8 44. Rxd4 (44. Qxd4 Qe7 $14)) 43... Kg7 $11 {[%emt 0:00:00]} 44. Nh5+ {[%emt 0:00:01]} Kg8 $2 {[%emt 0:00:02]} (44... Kf8 $1 $11 {and Black stays safe.} 45. Qd8+ Re8 46. Qxd4 (46. Qf6 Re6 $11) 46... Ne5) 45. Nf6+ {[%emt 0:00:03][%mdl 1024] White has strong compensation.} Kg7 {[%emt 0:00:00]} 46. Nh5+ {[%emt 0:00:01]} Kg8 {[%emt 0:00:02] [#]} 47. Nf6+ $2 {[%emt 0:00:04] White used his chance.   Weighted Error Value: White=0.75/Black=0.67} (47. Qd8+ $1 $18 Qf8 48. Rxd4 (48. Qxd4 c5 $16)) 1/2-1/2

[Event "4th Tata Steel India Blitz Women 2022"]
[Site "Kolkota"]
[Date "2022.12.03"]
[Round "1.2"]
[White "Muzychuk, Mariya"]
[Black "Kulkarni Bhakti"]
[Result "1-0"]
[ECO "C41"]
[WhiteElo "2528"]
[BlackElo "2359"]
[Annotator "TA"]
[PlyCount "105"]
[EventDate "2022.11.29"]
[EventType "tourn"]
[EventCountry "IND"]
[SourceTitle "playchess.com"]
[Source "ChessBase"]
[SourceQuality "1"]
[TimeControl "180+2"]

{[%evp 17,105,41,37,39,54,43,60,39,64,54,138,136,122,-34,-23,-56,-42,-52,-57,-47,-52,-155,-70,-152,-128,-316,-331,-310,-324,-324,-325,-332,-224,-270,-268,-274,-272,-313,0,0,0,0,-20,-20,0,-164,0,-200,-146,-375,-199,-293,0,-132,-138,-212,-206,-187,0,-234,-232,-224,351,-312,-308,-258,-227,-233,-226,-253,8,8,29972,29973,29973,29973,29973,29974,29975,29976,29976,29977,29977,29976,29976,29975,29981,29980,29978,6345]} 1. e4 {[%emt 0:00:01]} d6 {[%emt 0:00:02]} 2. d4 {[%emt 0:00:01]} Nf6 {[%emt 0:00:02]} 3. Nc3 {[%emt 0:00:01]} e5 {[%emt 0:00:02]} 4. Nf3 {[%emt 0:00:01]} Nbd7 {[%emt 0:00:02]} 5. Bc4 {[%emt 0:00:01]} Be7 {[%emt 0:00:02]} 6. a4 {[%emt 0:00:09]} O-O {[%emt 0:00:11]} 7. O-O {[%emt 0:00:02]} c6 {[%emt 0:00:01]} 8. Re1 {[%emt 0:00:03]} h6 {[%emt 0:00:04] seems to push 8...b6 aside.} 9. h3 {[%emt 0:00:03]} Re8 {[%emt 0:00:06]} 10. a5 {[%emt 0:00:05] C41: Philidor Defence.} Rb8 {[%emt 0:00:09]} 11. Be3 {[%emt 0:00:17]} b5 {[%emt 0:00:14]} 12. axb6 {[%emt 0:00:01] White is slightly better.} axb6 {[%emt 0:00:01]} 13. d5 {[%emt 0:00:07]} b5 {[%emt 0:00:12]} (13... Bb7 $14) 14. dxc6 $16 {[%emt 0:00:33]} bxc4 {[%emt 0:00:04] [#]} 15. cxd7 $146 {[%emt 0:00:01] White has more active pieces.} ({White has to play} 15. Ra7 $1 $16 {Threatens to win with c7.} Bb7 16. cxb7) ({Predecessor:} 15. Ra7 Bb7 16. Rxb7 Rxb7 17. cxb7 Qc7 18. Qe2 Qxb7 19. Qxc4 Qxb2 20. Rb1 Qa3 21. Rb7 {1-0 (31) Brkic,A (2595)-Sanal,V (2581) Chess.com INT 2020}) 15... Bxd7 {[%emt 0:00:12]} 16. Qc1 {[%emt 0:00:10]} Ra8 {[%emt 0:00:41]} 17. Rd1 {[%emt 0:00:13]} Qc7 {[%emt 0:00:10]} 18. Rxa8 {[%emt 0:00:11]} Rxa8 {[%emt 0:00:01]} 19. Nh4 {[%emt 0:00:16]} (19. Nh2 $15) 19... Bf8 {[%emt 0:00:13]} (19... Qb7 $17 20. f3 g5) 20. f4 {[%emt 0:00:10]} (20. f3 $15) 20... exf4 {[%emt 0:00:20]} 21. Bxf4 {[%emt 0:00:01]} (21. Bd4 $17 Nh5 22. Re1) 21... g5 $19 {[%emt 0:00:06]} 22. Bxg5 {[%emt 0:00:22]} hxg5 {[%emt 0:00:03]} 23. Qxg5+ {[%emt 0:00:00]} Bg7 {[%emt 0:00:01]} 24. Kh1 {[%emt 0:00:14]} Ra5 {[%emt 0:00:11] Inhibits Nb5.} 25. Nd5 {[%emt 0:00:05]} Nxd5 {[%emt 0:00:05]} (25... Nxe4 26. Qe3 (26. Qxg7+ $2 Kxg7 27. Nxc7 Nf2+ 28. Kg1 Nxd1 $19) 26... Rxd5 27. Rxd5 $15) 26. exd5 {[%emt 0:00:01]} Ra8 {[%emt 0:00:06]} 27. Re1 {[%emt 0:00:11]} Re8 $2 {[%emt 0:00:12]} (27... Qd8 $19 28. Qxd8+ Rxd8) 28. Rxe8+ $11 {[%emt 0:00:06]} Bxe8 {[%emt 0:00:01]} 29. Nf5 {[%emt 0:00:01][%csl Gf5][%cal Rg5g7]} f6 {[%emt 0:00:01]} 30. Qg3 {[%emt 0:00:01]} Kf8 {[%emt 0:00:08]} (30... Qd7 $5 {[%cal Rd7f5]} 31. Nxg7 Qxg7 32. Qxd6 Qg5 $15) 31. Nxd6 $2 {[%emt 0:00:10]} (31. b4 $11) 31... Ba4 $2 {[%emt 0:00:10]} (31... Bf7 $19 32. Kh2 Bh6) 32. c3 $2 {[%emt 0:00:05]} (32. Qa3 $11 {and White stays safe.} Qe7 33. Qxa4 (33. Nxc4 Bh6 $15) 33... Qe1+ 34. Kh2 Qe5+ 35. g3 Qe2+ 36. Kh1 Qe1+ 37. Kh2 Qf2+ 38. Kh1 Qe1+ 39. Kh2 Qf2+ 40. Kh1 Qe1+) 32... Bc2 {[%emt 0:00:04]} 33. h4 $2 {[%emt 0:00:05]} (33. Qf4 $17) 33... Qb8 {[%emt 0:00:05]} (33... Bh6 $142 34. Nf5 Qxg3 35. Nxg3 Bd3) 34. h5 {[%emt 0:00:02] [#]} (34. Qf4 {was worth a try.}) 34... Qd8 $2 {[%emt 0:00:03]} ({Stronger than} 34... Qxb2 35. Qe3 Kg8 36. h6 Bxh6 37. Qe8+ Kh7 38. Qf7+ (38. Nxc4 $2 {loses.} Qc1+ 39. Kh2 Qf4+ 40. Kg1 Qxc4 $19) 38... Bg7 39. Qh5+ Bh6 40. Qf7+ (40. Nxc4 $2 {perishes.} Qc1+ 41. Kh2 Qf4+ 42. Kg1 Qxc4 $19) 40... Bg7 41. Qh5+ Bh6 42. Qf7+ $11 (42. Nxc4 $2 Qc1+ 43. Kh2 Qf4+ 44. Kh1 Qf1+ 45. Kh2 Qxc4 $19)) (34... Bh6 $1 $19 {And now ...Bd3 would win.} 35. Qf2 Qxd6 36. Qxc2 Qxd5) 35. Nxc4 {[%emt 0:00:05]} (35. Qf4 $11 {was the only way to keep the balance.}) 35... Qxd5 $17 {[%emt 0:00:01]} 36. Ne3 {[%emt 0:00:06]} (36. Qh4 $17) 36... Qxh5+ $19 {[%emt 0:00:02]} 37. Kg1 {[%emt 0:00:01]} Be4 $2 {[%emt 0:00:02]} ({Black should play} 37... Qc5 $19 {...Bh6 is the strong threat.} 38. b4 Qb6) 38. Qb8+ $2 {[%emt 0:00:01]} (38. Qd6+ $11 {and White is okay.} Kf7 39. Qd7+ Kf8 40. Qd6+ Kf7 41. Qd7+ Kf8 42. Qd6+) 38... Kf7 {[%emt 0:00:01]} 39. Qc7+ {[%emt 0:00:01]} Kg8 $4 {[%emt 0:00:01][%mdl 8192]} (39... Kg6 $19 {and all is fine. Strongly threatening ...Qg5.} 40. Qg3+ Kh7) 40. Qb8+ $4 {[%emt 0:00:02][%mdl 8192]} (40. Qc4+ $18 {is the narrow road to win.} Qf7 41. Qxe4) 40... Kh7 {[%emt 0:00:01] White must now prevent ...Qg5.} 41. Qf4 {[%emt 0:00:01]} Qe5 {[%emt 0:00:04]} 42. Qh4+ {[%emt 0:00:02]} Kg8 {[%emt 0:00:01]} 43. Qf2 {[%emt 0:00:02]} Bh6 $2 {[%emt 0:00:01]} ({Black should try} 43... Qg5 $19 {Hoping for ...f5.} 44. Nf1 f5) 44. Ng4 $11 {[%emt 0:00:01][%csl LRe5,LRf6,LRh6] Inhibits f5.} Qf4 {[%emt 0:00:03][%mdl 8192]} (44... Qe6 $11 45. Nxh6+ Kg7) 45. Nxf6+ {[%emt 0:00:01] White mates.} Kf7 {[%emt 0:00:01]} 46. Qxf4 {[%emt 0:00:01][%mdl 64] Remove Defender} Bxf4 {[%emt 0:00:01]} 47. Nxe4 {[%emt 0:00:01] KB-KN} Ke6 {[%emt 0:00:01]} 48. Kf2 {[%emt 0:00:00]} Kf5 {[%emt 0:00:01]} 49. Kf3 {[%emt 0:00:01]} Bc7 {[%emt 0:00:01]} 50. g4+ {[%emt 0:00:01][%cal Bg2g4,Bg4g5][%mdl 32]} Ke5 {[%emt 0:00:01]} 51. b4 {[%emt 0:00:01]} Bb6 {[%emt 0:00:02]} 52. g5 {[%emt 0:00:02]} Kf5 {[%emt 0:00:01]} 53. c4 {[%emt 0:00:01] Weighted Error Value: White=0.64/Black=0.90} (53. b5 $142 Ke6 54. g6 Ke7 55. c4 Kf8 56. c5 Bd8 57. b6 Ke8 58. Nd6+ Kf8 59. Nb5) 1-0

[Event "4th Tata Steel India Blitz Women 2022"]
[Site "Kolkota"]
[Date "2022.12.03"]
[Round "1.3"]
[White "Kiolbasa, Oliwia"]
[Black "Ushenina, Anna"]
[Result "1/2-1/2"]
[ECO "B41"]
[WhiteElo "2406"]
[BlackElo "2454"]
[Annotator "TA"]
[PlyCount "148"]
[EventDate "2022.11.29"]
[EventType "tourn"]
[EventCountry "IND"]
[SourceTitle "playchess.com"]
[Source "ChessBase"]
[SourceQuality "1"]
[TimeControl "180+2"]

{[%evp 14,148,39,22,22,16,15,23,19,20,25,11,22,12,25,23,22,0,0,0,0,0,0,0,0,0,18,12,10,0,14,12,19,0,0,0,0,0,5,0,0,0,10,0,10,10,12,11,28,0,0,0,0,0,0,0,7,0,0,0,15,0,0,0,8,8,25,25,363,25,450,0,0,0,0,-1,-1,-1,0,0,0,0,0,0,29983,0,0,0,8,8,8,8,29972,29961,29977,29977,29977,29978,29983,29984,29984,0,0,0,0,0,0,0,0,0,0,0,0,0,0,0,0,0,0,0,0,0,0,0,0,0,0,0,0,0,0,0,0,0,0,0,0]} 1. e4 {[%emt 0:00:01]} c5 {[%emt 0:00:01]} 2. Nf3 {[%emt 0:00:02]} e6 {[%emt 0:00:01]} 3. d4 {[%emt 0:00:02]} cxd4 {[%emt 0:00:02]} 4. Nxd4 {[%emt 0:00:01]} a6 {[%emt 0:00:02]} 5. c4 {[%emt 0:00:02]} Nf6 {[%emt 0:00:02]} 6. Nc3 {[%emt 0:00:01]} Qc7 {[%emt 0:00:01]} 7. Be2 {[%emt 0:00:01]} Bb4 {[%emt 0:00:02]} 8. O-O {[%emt 0:00:07]} O-O {[%emt 0:00:06] B41: Sicilian: Kan Variation: 5 c4.} 9. Bg5 {[%emt 0:00:08]} Bxc3 {[%emt 0:00:02]} 10. Bxf6 {[%emt 0:00:01]} Bb4 {[%emt 0:00:01][%cal Bc3b4,Bb4d6,Bd6e5][%mdl 32] White has an edge.} 11. Bg5 {[%emt 0:00:03]} Bd6 {[%emt 0:00:19]} 12. h3 {[%emt 0:00:15]} Nc6 {[%emt 0:00:14] [#]} 13. Be3 $146 {[%emt 0:00:02][%cal Oc4c5]} ({Predecessor:} 13. Nxc6 dxc6 14. Be3 c5 15. f4 b6 16. e5 Be7 17. Bf3 Bb7 18. Bxb7 Qxb7 19. Qc2 {½-½ (59) Tari,A (2520)-Grandelius,N (2623) Oslo 2015}) 13... Be5 {[%emt 0:00:09]} 14. Rc1 {[%emt 0:00:11]} d6 {[%emt 0:00:10]} 15. f4 {[%emt 0:00:15]} Nxd4 {[%emt 0:00:13]} 16. Bxd4 {[%emt 0:00:12]} Bxd4+ {[%emt 0:00:02]} 17. Qxd4 {[%emt 0:00:01]} e5 {[%emt 0:00:01]} 18. Qe3 {[%emt 0:00:18]} exf4 {[%emt 0:00:11]} 19. Qxf4 {[%emt 0:00:11][%cal Oc4c5]} Qc5+ {[%emt 0:00:06]} 20. Kh1 {[%emt 0:00:08]} Be6 {[%emt 0:00:05]} 21. Rcd1 {[%emt 0:00:28]} Qe5 {[%emt 0:00:18]} 22. b3 {[%emt 0:00:13]} Rfd8 {[%emt 0:00:10]} 23. Bg4 {[%emt 0:00:26]} Qxf4 {[%emt 0:00:13]} 24. Rxf4 {[%emt 0:00:01]} Bxg4 {[%emt 0:00:13]} 25. Rxg4 $11 {[%emt 0:00:06][%mdl 4096] Endgame KRR-KRR} Kf8 {[%emt 0:00:16]} 26. Kg1 {[%emt 0:00:04]} h6 {[%emt 0:00:35]} 27. Rf4 {[%emt 0:00:11]} Ke7 {[%emt 0:00:03]} 28. Rf5 {[%emt 0:00:01]} Rac8 {[%emt 0:00:11]} 29. Rfd5 {[%emt 0:00:02]} Rc5 {[%emt 0:00:03]} 30. Kf2 {[%emt 0:00:04]} Rxd5 {[%emt 0:00:02]} 31. exd5 {[%emt 0:00:06] KR-KR} Kd7 {[%emt 0:00:02]} 32. Ke3 {[%emt 0:00:05]} Re8+ {[%emt 0:00:01]} 33. Kd3 {[%emt 0:00:00]} Re5 {[%emt 0:00:01]} 34. Rf1 {[%emt 0:00:02]} f6 {[%emt 0:00:01]} 35. Rf2 {[%emt 0:00:03]} b5 {[%emt 0:00:05]} 36. a4 {[%emt 0:00:12]} Kc7 {[%emt 0:00:01]} 37. axb5 {[%emt 0:00:01]} axb5 {[%emt 0:00:01]} 38. Ra2 {[%emt 0:00:02]} ({Of course not} 38. cxb5 Rxd5+ 39. Kc4 Rc5+ 40. Kb4 Kb6 $17) 38... Kb6 {[%emt 0:00:02] Prevents Ra7.} 39. Ra8 {[%emt 0:00:02] Black must now prevent Rc8.} bxc4+ {[%emt 0:00:02]} 40. bxc4 {[%emt 0:00:01] Rc8 is the strong threat.} Rg5 $2 {[%emt 0:00:02][%mdl 8192]} (40... Kb7 $1 $11 41. Rf8 Rg5) 41. g4 $2 {[%emt 0:00:03]} (41. Rc8 $1 $18) 41... h5 $2 {[%emt 0:00:01][%mdl 8192] [#]} (41... Kc7 $11 {and Black has nothing to worry.}) 42. gxh5 $2 {[%emt 0:00:07]} (42. Rc8 $1 $18 hxg4 43. Rc6+ Ka7 44. hxg4 (44. Rxd6 $2 {too greedy.} g3 $19)) 42... Rxh5 {[%emt 0:00:01]} 43. Rb8+ {[%emt 0:00:03]} Kc7 {[%emt 0:00:02]} 44. Rg8 {[%emt 0:00:01]} Rxh3+ {[%emt 0:00:03]} 45. Ke4 {[%emt 0:00:01]} Rh4+ {[%emt 0:00:01]} 46. Kf5 {[%emt 0:00:01]} Rxc4 {[%emt 0:00:04]} 47. Rxg7+ {[%emt 0:00:02]} Kb6 {[%emt 0:00:01]} 48. Ke6 {[%emt 0:00:03]} Rc7 $2 {[%emt 0:00:06][%mdl 8192] [#]} (48... f5 $11) 49. Rg1 $2 {[%emt 0:00:03]} (49. Rxc7 $1 Kxc7 50. Kxf6 Kb6 51. Kf7 Kb7 52. Ke6 Kc7 53. Ke7 Kc8 54. Kxd6) 49... Rc2 {[%emt 0:00:05]} 50. Kxd6 {[%emt 0:00:01]} Kb7 {[%emt 0:00:02]} 51. Kd7 {[%emt 0:00:02]} f5 $1 {[%emt 0:00:02]} 52. Rb1+ {[%emt 0:00:01]} Ka8 $2 {[%emt 0:00:01][%mdl 8192]} (52... Ka7 $11) 53. d6 {[%emt 0:00:01][%cal Bd5d6,Bd6d7][%mdl 32]} Rh2 {[%emt 0:00:01]} 54. Kc7 {[%emt 0:00:01]} Rc2+ {[%emt 0:00:02]} 55. Kd8 {[%emt 0:00:01]} f4 {[%emt 0:00:01]} 56. d7 {[%emt 0:00:01]} f3 {[%emt 0:00:01]} 57. Rf1 $2 {[%emt 0:00:07]} (57. Ke7 {mates} Re2+ 58. Kd6 Rd2+ 59. Kc7 Rc2+ 60. Kb6 Rd2 61. Rc1 Rb2+ 62. Kc7) 57... f2 {[%emt 0:00:01] The position is equal.} 58. Ke7 {[%emt 0:00:02]} (58. Rb1 $5 Ka7 $8 59. Ke8 (59. Ke7 Re2+ 60. Kf8 Rd2 $11) 59... Re2+ 60. Kf8 $11) 58... Re2+ {[%emt 0:00:01]} 59. Kf7 {[%emt 0:00:02]} (59. Kd6 $5 Rd2+ $8 60. Ke6 Re2+ 61. Kf6 $11) 59... Rd2 {[%emt 0:00:01] Against d8Q+} 60. Ke7 {[%emt 0:00:02][%cal Of1f2]} (60. Ke6 $5 Re2+ $8 61. Kf6 $11) 60... Re2+ {[%emt 0:00:00]} 61. Kd6 {[%emt 0:00:03]} (61. Kf6 $5 Rd2 $8 62. Ke7 Re2+ $11) 61... Rd2+ {[%emt 0:00:01]} 62. Kc7 {[%emt 0:00:01]} (62. Ke6 $5 Re2+ $8 63. Kf6 $11) 62... Rc2+ {[%emt 0:00:01]} 63. Kb6 {[%emt 0:00:02]} (63. Kd6 $5 Rd2+ $8 64. Ke7 Re2+ $11) 63... Rb2+ 64. Kc6 {[%emt 0:00:01]} (64. Kc7 $5 Rc2+ $8 65. Kd6 Rd2+ 66. Ke6 Re2+ 67. Kf6 $11) 64... Rc2+ {[%emt 0:00:01]} 65. Kb6 {[%emt 0:00:02]} Rb2+ {[%emt 0:00:01]} 66. Kc6 {[%emt 0:00:01]} Rc2+ {[%emt 0:00:00]} 67. Kd6 {[%emt 0:00:01]} Rd2+ {[%emt 0:00:01]} 68. Ke7 {[%emt 0:00:00][%cal Of1f2] Rxf2! would kill now.} (68. Ke6 $5 Re2+ $8 69. Kf5 $11) 68... Re2+ {[%emt 0:00:00]} 69. Kd8 {[%emt 0:00:01]} (69. Kd6 $5 Rd2+ $8 $11) 69... Rd2 {[%emt 0:00:01]} 70. Rb1 {[%emt 0:00:09] Threatening mate with Kc7.} (70. Ke8 $5 Re2+ $8 71. Kf7 $11) 70... Ka7 {[%emt 0:00:06]} 71. Kc7 {[%emt 0:00:03] Intending Ra1+ and mate.} Rc2+ {[%emt 0:00:01]} 72. Kd6 {[%emt 0:00:01]} Rd2+ {[%emt 0:00:00]} 73. Kc6 $1 {[%emt 0:00:01]} Rc2+ $1 {[%emt 0:00:01]} 74. Kd6 {[%emt 0:00:00]} (74. Kd5 $5 Rd2+ $8 75. Ke6 $11) 74... Rd2+ {Black defended with fortune.   Weighted Error Value: White=0.38/Black=0.55} 1/2-1/2